fUSD/lending_fUSD_20260130
["ID","MTS","AMOUNT","RATE_DAILY","PERIOD"]
[404035733,1769772642701,-2351.0,0.00016956,2]
[404035734,1769772642710,-251.11897888,0.0001696,2]
[404035735,1769772642720,-250.0,0.00017,2]
[404035736,1769772642730,-16166.05353687,0.00017,2]
[404035737,1769772642740,-2387.52939455,0.00017,2]
[404035738,1769772642750,-1000.0,0.00017006,2]
[404035739,1769772642760,-260.4103811,0.00017015,2]
[404035740,1769772642770,-163.0,0.0001704,2]
[404035741,1769772642779,-163.0,0.0001704,2]
[404035742,1769772642790,-8608.58079322,0.00017055,2]
[404035743,1769772642800,-8369.48756237,0.00017055,2]
[404035744,1769772642809,-195.0,0.00017064,2]
[404035745,1769772642819,-270.0455652,0.0001707,2]
[404035746,1769772642828,-167.0,0.00017081,2]
[404035747,1769772642838,-241.61663342,0.00017123,2]
[404035748,1769772642848,-280.03725112,0.00017125,2]
[404035749,1769772642858,-195.0,0.00017149,2]
[404035750,1769772642867,-290.39862941,0.0001718,2]
[404035751,1769772642877,-378.0,0.00017198,2]
[404035752,1769772642887,-500.0,0.00017207,2]
[404035753,1769772642897,-165.04,0.00017216,2]
[404035754,1769772642909,-308.73569393,0.00017233,2]
[404035755,1769772642919,-899.51879656,0.00017233,2]
[404035756,1769772642929,-195.0,0.00017234,2]
[404035757,1769772642939,-301.1433787,0.00017235,2]
[404035758,1769772642950,-195.0,0.00017319,2]
[404035759,1769772642960,-301.01,0.00017349,2]
[404035760,1769772642969,-150.0,0.00017349,2]
[404035761,1769772642979,-150.0,0.00017349,2]
[404035762,1769772642988,-150.0,0.00017349,2]
[404035763,1769772642998,-150.0,0.00017349,2]
[404035764,1769772643009,-2831.0,0.0001736,2]
[404035765,1769772643019,-163.0,0.0001736,2]
[404035766,1769772643028,-165.52240046,0.00017378,2]
[404035767,1769772643038,-195.0,0.00017404,2]
[404035768,1769772643048,-378.0,0.00017452,2]
[404035769,1769772643058,-8608.58079322,0.00017478,2]
[404035770,1769772643068,-8369.48756237,0.00017478,2]
[404035771,1769772643078,-195.0,0.00017489,2]
[404035772,1769772643088,-195.0,0.00017575,2]
[404035773,1769772643098,-2700.0,0.000176,6]
[404035774,1769772643108,-205.65,0.0001763,2]
[404035775,1769772643117,-428.0,0.00017633,2]
[404035776,1769772643127,-428.0,0.00017657,2]
[404035778,1769772643137,-195.0,0.0001766,2]
[404035779,1769772643146,-378.0,0.00017666,2]
[404035780,1769772643158,-2830.0,0.0001768,2]
[404035781,1769772643167,-500.0,0.000177,6]
[404035782,1769772643177,-428.0,0.00017722,2]
[404035783,1769772643187,-158.92869501,0.00017723,2]
[404035784,1769772643196,-167.0,0.00017732,2]
[404035785,1769772643206,-195.0,0.00017745,2]
[404035786,1769772643217,-378.0,0.00017756,2]
[404035787,1769772643227,-500.0,0.000178,6]
[404035788,1769772643239,-387.64021899,0.00017803,2]
[404035789,1769772643250,-428.0,0.00017819,2]
[404035790,1769772643261,-450.04389,0.0001782,2]
[404035791,1769772643271,-450.0439,0.0001782,2]
[404035792,1769772643280,-450.0439,0.0001782,2]
[404035793,1769772643290,-450.04389,0.0001782,2]
[404035794,1769772643301,-195.0,0.0001783,2]
[404035795,1769772643311,-200.0,0.00017856,2]
[404035796,1769772643320,-426.27,0.00017863,2]
[404035797,1769772643330,-10000.0,0.00017873,2]
[404035798,1769772643341,-161.08851633,0.000179,2]
[404035799,1769772643350,-411.185,0.000179,3]
[404035800,1769772643360,-25000.0,0.000179,3]
[404035801,1769772643370,-500.0,0.000179,6]
[404035802,1769772643379,-8608.58079322,0.000179,2]
[404035803,1769772643390,-370.69764968,0.000179,2]
[404035804,1769772643399,-8369.48756237,0.000179,2]
[404035805,1769772643410,-241.61663342,0.000179,2]
[404035806,1769772643421,-195.0,0.00017915,2]
[404035807,1769772643431,-441.76,0.00017935,2]
[404035808,1769772643442,-428.0,0.00017968,2]
[404035809,1769772643453,-302.9345623,0.00017973,2]
[404035810,1769772643463,-500.0,0.00017973,2]
[404035811,1769772643474,-500.0,0.00017973,2]
[404035812,1769772643484,-500.0,0.00017973,2]
[404035813,1769772643494,-500.0,0.00017973,2]
[404035814,1769772643505,-500.0,0.00017973,2]
[404035815,1769772643514,-500.0,0.00017973,2]
[404035816,1769772643524,-500.0,0.00017973,2]
[404035817,1769772643533,-150.0,0.00017973,2]
[404035818,1769772643543,-501.0040876,0.00017973,2]
[404035819,1769772643553,-500.0,0.00017973,2]
[404035820,1769772643562,-500.0,0.00017973,2]
[404035821,1769772643572,-500.0,0.00017973,2]
[404035822,1769772643582,-500.0,0.00017973,2]
[404035823,1769772643592,-500.0,0.00017973,2]
[404035824,1769772643602,-501.14557509,0.00017973,2]
[404035825,1769772643612,-500.0,0.00017973,2]
[404035826,1769772643622,-500.0,0.00017973,2]
[404035827,1769772643632,-500.0,0.00017973,2]
[404035828,1769772643641,-500.0,0.00017973,2]
[404035829,1769772643650,-175.57287607,0.00017973,2]
[404035830,1769772643659,-500.0,0.00017973,2]
[404035831,1769772643668,-151.06501544,0.00017973,2]
[404035832,1769772643678,-163.36858583,0.00017973,2]
[404035833,1769772643687,-500.0,0.00017973,2]
[404035834,1769772643697,-500.0,0.00017973,2]
[404035835,1769772643706,-160.13080306,0.00017973,2]
[404035836,1769772643730,-500.0,0.00017973,2]
[404035837,1769772643747,-160.23001291,0.00017973,2]
[404035838,1769772643766,-501.59358737,0.00017973,2]
[404035839,1769772643786,-500.0,0.00017973,2]
[404035840,1769772643802,-643.80866733,0.00017973,2]
[404035841,1769772643821,-500.0,0.00017973,2]
[404035842,1769772643841,-500.0,0.00017973,2]
[404035843,1769772643862,-500.0,0.00017973,2]
[404035844,1769772643880,-501.56315427,0.00017973,2]
[404035845,1769772643899,-432.02224032,0.00017973,2]
[404035846,1769772643918,-500.0,0.00017973,2]
[404035847,1769772643933,-500.0,0.00017973,2]
[404035848,1769772643951,-210.27851574,0.00017973,2]
[404035849,1769772643966,-500.0,0.00017973,2]
[404035850,1769772643983,-502.00704372,0.00017973,2]
[404035851,1769772643997,-500.0,0.00017973,2]
[404035852,1769772644012,-501.00493719,0.00017973,2]
[404035853,1769772644028,-500.0,0.00017973,2]
[404035854,1769772644044,-500.0,0.00017973,2]
[404035855,1769772644069,-501.3344838,0.00017973,2]
[404035856,1769772644084,-392.26050896,0.00017973,2]
[404035857,1769772644099,-500.0,0.00017973,2]
[404035858,1769772644116,-500.0,0.00017973,2]
[404035859,1769772644132,-501.19732692,0.00017973,2]
[404035860,1769772644148,-563.6024582,0.00017973,2]
[404035861,1769772644163,-500.0,0.00017973,2]
[404035862,1769772644178,-500.0,0.00017973,2]
[404035863,1769772644194,-500.0,0.00017973,2]
[404035864,1769772644209,-500.0,0.00017973,2]
[404035865,1769772644225,-500.0,0.00017973,2]
[404035866,1769772644240,-160.94336559,0.0001799,2]
[404035867,1769772644255,-25000.0,0.00017999,3]
[404035868,1769772644270,-150.0,0.00017999,2]
[404035869,1769772644286,-300.0,0.00017999,2]
[404035870,1769772644301,-300.0,0.00017999,2]
[404035871,1769772644317,-300.0,0.00017999,2]
[404035872,1769772644332,-342.16934366,0.00017999,2]
[404035873,1769772644348,-300.0,0.00017999,2]
[404035874,1769772644364,-113910.63052718,0.00018,2]
[404035875,1769772644381,-1101853.25220538,0.00018,2]
[404035876,1769772644396,-338391.82856673,0.00018,2]
[404035877,1769772644451,-321212.4218085,0.00018,2]
[404035878,1769772644470,-1819.1209591,0.00018,2]
[404035879,1769772644494,-294.497,0.00018,2]
[404035880,1769772644512,-7633.13592568,0.00018,2]
[404035881,1769772644562,-1902.07,0.00018,2]
[404035882,1769772644580,-2860.95238278,0.00018,2]
[404035884,1769772648000,-151.0,0.0001511,2]
[404035885,1769772648009,-597.41131265,0.00016235,2]
[404035886,1769772648020,-153.94607315,0.00016373,2]
[404035887,1769772648030,-63738.61890797,0.00018,2]
[404035888,1769772648040,-2865.61468976,0.00018,2]
[404035889,1769772648461,-600.33605947,0.00018,2]
[404035890,1769772648473,-1130.40073013,0.00018,2]
[404035891,1769772649408,-632.35968347,0.00018,2]
[404035897,1769772782803,200.0,0.000137,5]
[404035898,1769772784864,400.0,0.000138,5]
[404035899,1769772786977,600.0,0.000139,5]
[404035901,1769772955294,3294.92,0.00012824,2]
[404035928,1769773283170,-1152.37817866,0.00013916,2]
[404035929,1769773283194,-265.0,0.00013916,2]
[404035930,1769773283219,-8672.75500947,0.00013916,2]
[404035931,1769773283242,-300.0,0.00013928,2]
[404035932,1769773283263,-195.0,0.00013941,2]
[404035933,1769773283284,-300.0,0.0001395,2]
[404035934,1769773283305,-150.0,0.00013965,2]
[404035935,1769773283326,-300.0,0.00013965,2]
[404035936,1769773283347,-1200.0,0.00013965,2]
[404035937,1769773283369,-250.0,0.00013965,2]
[404035938,1769773283391,-2362.71225703,0.00013966,2]
[404035939,1769773283412,-1318.55938645,0.00013966,2]
[404035940,1769773283434,-247.13176646,0.00013966,2]
[404035941,1769773283457,-7747.72271397,0.00013966,2]
[404035942,1769773283478,-176.76695091,0.00013997,2]
[404035943,1769773283499,-956.39659001,0.00014,2]
[404035944,1769773283520,-151.0,0.00014004,2]
[404035945,1769773283541,-209.41,0.00014006,2]
[404035946,1769773283563,-294.55551423,0.00014006,2]
[404035947,1769773283584,-500.0,0.00014006,2]
[404035948,1769773283608,-406.62271937,0.00014006,2]
[404035949,1769773283629,-225.02455019,0.00014006,2]
[404035950,1769773283652,-500.0,0.00014006,2]
[404035951,1769773283676,-118.96436325,0.00014006,2]
[404035952,1769773285165,-381.03563675,0.00014006,2]
[404035953,1769773285219,-600.67256954,0.00014006,2]
[404035954,1769773285267,-511.433595,0.00014006,2]
[404035955,1769773285316,-197.64060306,0.00014006,2]
[404035956,1769773285367,-318.87662267,0.00014006,2]
[404035957,1769773285424,-500.0,0.00014006,2]
[404035958,1769773285482,-500.0,0.00014006,2]
[404035959,1769773285537,-500.0,0.00014006,2]
[404035960,1769773285593,-500.0,0.00014006,2]
[404035961,1769773285646,-500.0,0.00014006,2]
[404035962,1769773285705,-480.69194596,0.00014006,2]
[404035963,1769773286044,-201.34719455,0.00013916,2]
[404035964,1769773286098,-19.30805404,0.00014006,2]
[404035965,1769773286155,-500.0,0.00014006,2]
[404035966,1769773286209,-500.0,0.00014006,2]
[404035967,1769773286260,-500.0,0.00014006,2]
[404035968,1769773286313,-500.0,0.00014006,2]
[404035969,1769773286365,-500.0,0.00014006,2]
[404035970,1769773286416,-500.0,0.00014006,2]
[404035971,1769773286468,-500.0,0.00014006,2]
[404035972,1769773286523,-500.0,0.00014006,2]
[404035973,1769773286556,-326.23411976,0.00014006,2]
[404035974,1769773286587,-406.2312633,0.00014006,2]
[404035975,1769773287263,-93.7687367,0.00014006,2]
[404035976,1769773287295,-500.0,0.00014006,2]
[404035977,1769773287326,-500.0,0.00014006,2]
[404035978,1769773287358,-500.0,0.00014006,2]
[404035979,1769773287390,-500.0,0.00014006,2]
[404035980,1769773287422,-500.0,0.00014006,2]
[404035981,1769773287455,-500.0,0.00014006,2]
[404035982,1769773287486,-500.0,0.00014006,2]
[404035983,1769773287517,-500.0,0.00014006,2]
[404035984,1769773287548,-500.0,0.00014006,2]
[404035985,1769773287582,-312.4725266,0.00014006,2]
[404035986,1769773289197,-187.5274734,0.00014006,2]
[404035987,1769773289230,-500.0,0.00014006,2]
[404035988,1769773289260,-500.0,0.00014006,2]
[404035989,1769773289288,-157.51718513,0.00014006,2]
[404035990,1769773289321,-500.0,0.00014006,2]
[404035991,1769773289356,-500.0,0.00014006,2]
[404035992,1769773289403,-1492.90782458,0.00014007,2]
[404035993,1769773292365,-861.14175311,0.00014007,2]
[404035994,1769773295101,-1705.563,0.00014006,2]
[404035995,1769773295131,-182.235,0.00014006,2]
[404035996,1769773297112,-1492.90782458,0.00014007,2]
[404035997,1769773403600,-165.51566,0.00013757,2]
[404035998,1769773405362,-166.66,0.00013757,2]
[404035999,1769773407701,-267.0,0.00013757,2]
[404036000,1769773410292,-196.31686961,0.00013757,2]
[404036001,1769773412248,-219.06446944,0.00013757,2]
[404036002,1769773414567,-916.0,0.00013757,2]
[404036003,1769773417252,-166.41797842,0.00013757,2]
[404036004,1769773419177,-185.21502253,0.00013757,2]
[404036005,1769773419205,-168.59304671,0.00013816,2]
[404036006,1769773511941,10000.01,0.00013496,2]
[404036007,1769773511963,2697.33,0.00013496,2]
[404036013,1769773643505,200.0,0.000137,5]
[404036014,1769773646586,400.0,0.000138,5]
[404036015,1769773647803,600.0,0.000139,5]
[404036016,1769773649788,800.0,0.000149,5]
[404036021,1769773831835,-166.6,0.00013755,2]
[404036022,1769773831844,-150.0,0.00013815,2]
[404036023,1769773831854,-30.18075065,0.00013815,2]
[404036024,1769773831887,-1169.81924935,0.00013815,2]
[404036025,1769773831897,-7805.47950855,0.00013816,2]
[404036026,1769773831907,-164.75451098,0.00013832,2]
[404036027,1769773831917,-599.96498292,0.00013832,2]
[404036028,1769773831927,-987.25677548,0.00013832,2]
[404036029,1769773831936,-176.76695091,0.00013896,2]
[404036030,1769773831945,-151.0,0.00013903,2]
[404036031,1769773831955,-300.0,0.00013904,2]
[404036032,1769773831964,-271.90901464,0.00013905,2]
[404036033,1769773831974,-500.0,0.00013905,2]
[404036034,1769773831983,-500.0,0.00013905,2]
[404036035,1769773831994,-500.0,0.00013905,2]
[404036036,1769773832004,-500.0,0.00013905,2]
[404036037,1769773832013,-198.84886007,0.00013905,2]
[404036038,1769773832024,-498.5403003,0.00013905,2]
[404036039,1769773832043,-1.4596997,0.00013905,2]
[404036040,1769773832052,-500.0,0.00013905,2]
[404036041,1769773832061,-500.0,0.00013905,2]
[404036042,1769773832071,-500.0,0.00013905,2]
[404036043,1769773832080,-504.1508484,0.00013905,2]
[404036044,1769773832090,-500.0,0.00013905,2]
[404036045,1769773832100,-500.0,0.00013905,2]
[404036046,1769773832109,-500.0,0.00013905,2]
[404036047,1769773832119,-503.01886942,0.00013905,2]
[404036048,1769773832128,-19.69058248,0.00013905,2]
[404036050,1769773832156,-480.30941752,0.00013905,2]
[404036051,1769773832166,-500.0,0.00013905,2]
[404036052,1769773832176,-500.0,0.00013905,2]
[404036053,1769773832189,-500.0,0.00013905,2]
[404036054,1769773832199,-500.0,0.00013905,2]
[404036056,1769773832208,-500.0,0.00013905,2]
[404036058,1769773832216,-500.0,0.00013905,2]
[404036060,1769773832225,-500.0,0.00013905,2]
[404036062,1769773832235,-500.0,0.00013905,2]
[404036064,1769773832244,-500.0,0.00013905,2]
[404036065,1769773832253,-500.0,0.00013905,2]
[404036066,1769773832262,-753.61,0.00013905,2]
[404036067,1769773832271,-500.0,0.00013905,2]
[404036068,1769773832279,-284.63590356,0.00013905,2]
[404036069,1769773832288,-620.47079868,0.00013905,2]
[404036071,1769773832298,-358.0035165,0.00013905,2]
[404036072,1769773832308,-500.0,0.00013905,2]
[404036073,1769773832317,-232.62341197,0.00013905,2]
[404036074,1769773832326,-500.0,0.00013905,2]
[404036075,1769773832335,-500.0,0.00013905,2]
[404036076,1769773832346,-500.0,0.00013905,2]
[404036077,1769773832355,-500.0,0.00013905,2]
[404036078,1769773832364,-500.0,0.00013905,2]
[404036079,1769773832374,-500.0,0.00013905,2]
[404036080,1769773832383,-5661.72299984,0.00013906,2]
[404036091,1769773838006,-17401.00640134,0.00013906,2]
[404036092,1769773838017,-8460.0,0.00013906,2]
[404036093,1769773838028,-56033.54113682,0.00013906,2]
[404036094,1769773838039,-496.5,0.00013906,2]
[404036095,1769773838083,-500.0,0.00013906,2]
[404036096,1769773838096,-587.00690597,0.00013906,2]
[404036097,1769773838133,-1341.69773257,0.00013906,2]
[404036098,1769773838147,-1260.0,0.00013906,2]
[404036099,1769773838158,-887.59089991,0.00013906,2]
[404036100,1769773838170,-6115.39642763,0.00013906,2]
[404036137,1769773840000,-412.8989822,0.00013906,2]
[404036138,1769773840249,-1.7e-07,0.00013906,2]
[404036139,1769773840311,-1392.10538075,0.00013906,2]
[404036140,1769773840337,-520.33046191,0.00013906,2]
[404036156,1769773840565,-2298930.20267089,0.00013906,2]
[404036158,1769773840575,-171.51596019,0.00013932,2]
[404036160,1769773840584,-500.0,0.00013932,2]
[404036163,1769773840594,-500.0,0.00013932,2]
[404036165,1769773840604,-500.0,0.00013932,2]
[404036167,1769773840613,-500.0,0.00013932,2]
[404036169,1769773840622,-500.0,0.00013987,2]
[404036171,1769773840631,-500.0,0.00013987,2]
[404036172,1769773840641,-500.0,0.00013987,2]
[404036173,1769773840651,-367.52085088,0.00013999,2]
[404036174,1769773840660,-504.0642492,0.00013999,2]
[404036175,1769773840670,-500.0,0.00014006,2]
[404036176,1769773840679,-500.0,0.00014006,2]
[404036177,1769773840688,-604.58205548,0.00014006,2]
[404036178,1769773840697,-500.0,0.00014006,2]
[404036179,1769773840706,-500.0,0.00014006,2]
[404036180,1769773840716,-500.0,0.00014006,2]
[404036181,1769773840725,-500.0,0.00014006,2]
[404036182,1769773840734,-500.0,0.00014006,2]
[404036183,1769773840743,-500.0,0.00014006,2]
[404036184,1769773840752,-500.0,0.00014006,2]
[404036185,1769773840761,-500.0,0.00014006,2]
[404036186,1769773840770,-500.0,0.00014006,2]
[404036187,1769773840779,-500.0,0.00014006,2]
[404036188,1769773840788,-500.0,0.00014006,2]
[404036189,1769773840798,-500.0,0.00014006,2]
[404036190,1769773840807,-500.0,0.00014006,2]
[404036191,1769773840817,-500.0,0.00014006,2]
[404036192,1769773840825,-500.0,0.00014006,2]
[404036193,1769773840835,-500.0,0.00014006,2]
[404036194,1769773840844,-419.12847376,0.00014006,2]
[404036195,1769773840853,-1172.19,0.00014016,2]
[404036196,1769773840862,-500.0,0.00014042,2]
[404036197,1769773840872,-200.0,0.00014042,2]
[404036198,1769773840881,-500.0,0.00014042,2]
[404036199,1769773840892,-500.0,0.00014096,2]
[404036200,1769773840901,-500.0,0.00014096,2]
[404036201,1769773840910,-500.0,0.00014106,2]
[404036202,1769773840919,-500.0,0.00014106,2]
[404036203,1769773840929,-500.0,0.00014106,2]
[404036204,1769773840939,-220.28127127,0.00014106,2]
[404036205,1769773840948,-500.0,0.00014106,2]
[404036206,1769773840958,-500.0,0.00014106,2]
[404036207,1769773840967,-500.0,0.00014106,2]
[404036208,1769773840977,-479.19347952,0.00014106,2]
[404036209,1769773840986,-500.0,0.00014106,2]
[404036210,1769773840996,-500.0,0.00014106,2]
[404036211,1769773841006,-500.0,0.00014106,2]
[404036212,1769773841016,-500.0,0.00014106,2]
[404036213,1769773841026,-500.0,0.00014106,2]
[404036214,1769773841037,-500.0,0.00014106,2]
[404036215,1769773841047,-194.23572268,0.00014106,2]
[404036216,1769773841056,-500.0,0.00014106,2]
[404036217,1769773841065,-385.18354163,0.00014106,2]
[404036218,1769773841075,-500.0,0.00014106,2]
[404036219,1769773841084,-500.0,0.00014106,2]
[404036220,1769773841093,-500.0,0.00014106,2]
[404036221,1769773841102,-226.21679116,0.00014106,2]
[404036222,1769773841111,-500.0,0.00014106,2]
[404036223,1769773841120,-500.0,0.00014106,2]
[404036224,1769773841129,-500.0,0.00014106,2]
[404036225,1769773841141,-500.0,0.00014106,2]
[404036226,1769773841150,-500.0,0.00014106,2]
[404036227,1769773841160,-326.5559361,0.00014106,2]
[404036228,1769773841169,-271.3035718,0.00014106,2]
[404036229,1769773841178,-505.08602897,0.00014106,2]
[404036230,1769773841188,-502.42866636,0.00014106,2]
[404036231,1769773841197,-500.0,0.00014106,2]
[404036232,1769773841206,-622.5575592,0.00014106,2]
[404036233,1769773841216,-500.0,0.00014106,2]
[404036234,1769773841225,-500.0,0.00014106,2]
[404036235,1769773841235,-500.0,0.00014106,2]
[404036236,1769773841243,-500.0,0.00014106,2]
[404036237,1769773841254,-500.0,0.00014106,2]
[404036238,1769773841263,-500.0,0.00014106,2]
[404036239,1769773841272,-500.0,0.00014106,2]
[404036240,1769773841282,-500.0,0.00014106,2]
[404036241,1769773841291,-500.0,0.00014106,2]
[404036242,1769773841303,-500.0,0.00014106,2]
[404036243,1769773841313,-164.91,0.00014146,2]
[404036244,1769773841323,-500.0,0.00014151,2]
[404036245,1769773841332,-500.0,0.00014151,2]
[404036246,1769773841342,-753.61,0.00014179,2]
[404036247,1769773841351,-500.0,0.00014206,2]
[404036248,1769773841360,-510.0,0.00014206,2]
[404036249,1769773841369,-500.0,0.00014206,2]
[404036250,1769773841380,-500.0,0.00014206,2]
[404036251,1769773841389,-500.0,0.00014206,2]
[404036252,1769773841398,-500.0,0.00014206,2]
[404036253,1769773841407,-500.0,0.00014206,2]
[404036254,1769773841418,-500.0,0.00014206,2]
[404036255,1769773841427,-500.0,0.00014206,2]
[404036256,1769773841436,-1459.48,0.00014236,2]
[404036257,1769773841446,-216.0,0.00014261,2]
[404036258,1769773841455,-7805.47950846,0.0001427,2]
[404036259,1769773841463,-954.0,0.00014292,2]
[404036260,1769773841472,-1182.0,0.00014312,2]
[404036261,1769773841735,-441.0,0.00014315,2]
[404036262,1769773841745,-486.0,0.0001432,2]
[404036263,1769773841754,-166.6,0.00014322,2]
[404036264,1769773841763,-206.0,0.00014349,2]
[404036265,1769773841772,-987.25677546,0.00014413,2]
[404036266,1769773841781,-753.61,0.00014453,2]
[404036267,1769773841790,-111145.47814157,0.00014601,2]
[404036268,1769773841799,-1172.19,0.00014717,2]
[404036269,1769773841808,-7805.47950846,0.00014724,2]
[404036270,1769773841817,-753.61,0.00014727,2]
[404036271,1769773841826,-166.66,0.00014797,2]
[404036272,1769773841835,-166.6,0.0001489,2]
[404036273,1769773841844,-155.0569489,0.000149,2]
[404036274,1769773841854,-151.0,0.00014926,2]
[404036275,1769773841863,-151.0,0.00014927,2]
[404036276,1769773841872,-151.0,0.00014932,2]
[404036277,1769773841881,-151.0,0.00014932,2]
[404036278,1769773841891,-255.0,0.00014934,2]
[404036279,1769773841900,-151.0,0.0001494,2]
[404036280,1769773841910,-1318.55938641,0.0001495,2]
[404036281,1769773841919,-987.25677546,0.00014994,2]
[404036282,1769773841927,-753.61,0.00015001,2]
[404036283,1769773841937,-151.0,0.00015104,2]
[404036284,1769773841947,-166.66,0.00015109,2]
[404036285,1769773841956,-300.0,0.0001513,2]
[404036286,1769773841966,-670.73585146,0.0001513,2]
[404036287,1769773841975,-7805.47950846,0.00015177,2]
[404036288,1769773841984,-85.74454981,0.00015196,2]
[404036308,1769773844349,-1550.0,0.0001433,2]
[404036309,1769773844359,-1687.0,0.00014358,2]
[404036310,1769773844368,-1245.0,0.00014387,2]
[404036311,1769773844378,-1594.25545019,0.00015196,2]
[404036312,1769773844388,-2500.0,0.00015197,2]
[404036313,1769773844398,-202.35883745,0.00015197,2]
[404036314,1769773844407,-195.0,0.00015197,2]
[404036315,1769773844416,-426.27,0.00015262,2]
[404036316,1769773844426,-753.66245222,0.00015275,2]
[404036317,1769773844435,-2603.46032408,0.00015287,2]
[404036318,1769773844444,-4095.17100018,0.00015287,2]
[404036337,1769773846006,-2775.40198584,0.00015287,2]
[404036338,1769773846016,-949.68943223,0.00015374,2]
[404036339,1769773846026,-1172.19,0.00015418,2]
[404036340,1769773846035,-166.66,0.0001542,2]
[404036341,1769773846044,-166.6,0.00015457,2]
[404036342,1769773846054,-10076.80540011,0.00015569,2]
[404036343,1769773846063,-751.53924569,0.00015575,2]
[404036344,1769773846075,-235.71752977,0.00015575,2]
[404036345,1769773846085,-64.51656295,0.00015601,2]
[404036351,1769773922945,500.0,0.00013655,2]
[404036352,1769773957494,-48182.78119233,0.00013805,2]
[404036353,1769773961150,-280.94414854,0.00013805,2]
[404036354,1769773964319,-1204.0,0.00013805,2]
[404036355,1769773965886,-600.0,0.00013805,2]
[404036356,1769773968455,-419.15495241,0.00013805,2]
[404036357,1769773970097,-187.67798186,0.00013805,2]
[404036358,1769773972844,-152.83668461,0.00013805,2]
[404036359,1769773976068,-189.91299995,0.00013805,2]
[404036360,1769773981449,-286.78454208,0.00013805,2]
[404036361,1769773983613,-316.71748123,0.00013805,2]
[404036362,1769773986811,-361.27171518,0.00013805,2]
[404036363,1769773990545,-220.07671513,0.00013805,2]
[404036364,1769773993177,-226.82063564,0.00013805,2]
[404036365,1769773996027,-445.04373616,0.00013805,2]
[404036366,1769773997397,-1205.33813284,0.00013805,2]
[404036368,1769774033647,-500.03655605,0.00013736,2]
[404036369,1769774050012,-493.62838773,0.00013705,2]
[404036370,1769774089162,163.21,0.00011317,2]
[404036371,1769774123878,169.99967188,0.00013705,2]
[404036372,1769774190937,791.13563187,0.00013705,2]
[404036373,1769774247010,506.17188987,0.00017,30]
[404036374,1769774248273,500.0,0.00017,30]
[404036375,1769774248797,948.20950901,0.00016,30]
[404036376,1769774325968,7888.40792079,0.00013705,2]
[404036377,1769774325991,2228.18108921,0.00013705,2]
[404036378,1769774364358,1150.345313,0.00013699,2]
[404036379,1769774424741,4683.28770513,0.00013705,2]
[404036380,1769774492608,1364.451,0.00013529,2]
[404036381,1769774492661,182.236,0.00013529,2]
[404036383,1769774531629,-250.0,0.00013768,2]
[404036384,1769774531660,-300.0,0.00013803,2]
[404036385,1769774531689,-1200.0,0.00013803,2]
[404036386,1769774531720,-500.0,0.00013804,2]
[404036387,1769774531752,-199.24513249,0.00013804,2]
[404036388,1769774531783,-250.60246155,0.00013804,2]
[404036389,1769774531813,-284.32955907,0.00013804,2]
[404036390,1769774531842,-500.0,0.00013804,2]
[404036391,1769774531874,-500.0,0.00013804,2]
[404036392,1769774531905,-500.0,0.00013804,2]
[404036393,1769774531936,-340.90557931,0.00013804,2]
[404036394,1769774532297,-500.0,0.00013804,2]
[404036395,1769774532330,-500.0,0.00013804,2]